bitfinex/quotes_ETHUSD_20250804
["timestamp","ask_amount","ask_price","bid_price","bid_amount"]
[1754286948761,0.001,3537.4,3537.3,2.82701495]
[1754286949067,4.7706,3537.4,3537.3,2.82701495]
[1754286949632,4.7706,3537.4,3537.3,2.96861495]
[1754286950075,4.305,3537.4,3537.3,2.96861495]
[1754286950566,0.4666,3537.4,3537.3,2.96861495]
[1754286950767,4.7706,3537.4,3537.3,2.96861495]
[1754286951667,24.95343511,3538.0,3537.3,2.96861495]
[1754286951668,3.75047837,3538.0,3537.7,2.82669531]
[1754286951872,1.76877837,3538.0,3537.8,2.82661541]
[1754286952067,1.76877837,3538.0,3537.9,2.82653551]
[1754286952247,6.07277837,3538.0,3537.9,2.82653551]
[1754286952663,1.76877837,3538.0,3537.9,2.82653551]
[1754286952852,6.07277837,3538.0,3537.9,2.82653551]
[1754286954269,6.794,3538.5,3538.2,2.82623069]
[1754286954431,6.794,3538.5,3538.4,2.8261361]
[1754286954634,11.097,3538.5,3538.4,2.8261361]
[1754286955058,11.5626,3538.5,3538.4,2.8261361]
[1754286955457,4.7696,3538.5,3538.4,2.8261361]
[1754286956437,0.001,3538.5,3538.4,2.8261361]
[1754286956644,4.304,3538.5,3538.4,3.40553278]
[1754286956951,4.7696,3538.5,3538.4,3.40553278]
[1754286957151,4.7696,3538.5,3538.4,2.8261361]
[1754286958170,4.304,3538.5,3538.4,2.8261361]
[1754286958559,0.001,3538.5,3538.4,2.8261361]
[1754286958758,1e-08,3538.5,3538.4,2.9677361]
[1754286961978,0.55,3539.2,3539.1,2.82557712]
[1754286962272,2.5317,3539.4,3539.3,2.82541745]
[1754286962472,6.8337,3539.4,3539.3,2.82541745]
[1754286962640,7.2683,3539.4,3539.3,2.82541745]
[1754286963078,4.7366,3539.4,3539.3,2.82541745]
[1754286963287,4.7366,3539.4,3539.3,2.96701745]
[1754286964051,0.4346,3539.4,3539.3,2.96701745]
[1754286964253,4.7366,3539.4,3539.3,3.54627031]
[1754286964580,0.55000001,3539.7,3539.6,2.82517798]
[1754286964876,1e-08,3539.7,3539.6,3.03422619]
[1754286965390,0.43460001,3539.7,3539.6,3.17582619]
[1754286967392,2.30320001,3539.7,3539.6,3.17582619]
[1754286967799,2.30320001,3539.7,3539.6,3.03422619]
[1754286969196,0.43460001,3539.7,3539.6,3.03422619]
[1754286969579,4.73560001,3539.7,3539.6,3.03422619]
[1754286973801,4.30100001,3539.7,3539.6,3.03422619]
[1754286974014,4.30100001,3539.7,3539.6,3.63433599]
[1754286974392,1e-08,3539.7,3539.6,3.63433599]
[1754286974702,4.30000001,3539.7,3539.6,3.63433599]
[1754286976406,1e-08,3539.7,3539.6,3.63433599]
[1754286976919,4.30000001,3539.7,3539.6,3.63433599]
[1754286977780,4.73460001,3539.7,3539.6,3.63433599]
[1754286979008,4.30000001,3539.7,3539.6,3.63433599]
[1754286980491,4.73460001,3539.7,3539.6,3.63433599]
[1754286981117,4.30000001,3539.7,3539.6,3.63433599]
[1754286981701,4.73460001,3539.7,3539.6,3.63433599]
[1754286981901,4.73460001,3539.7,3539.6,3.03422619]
[1754286982314,6.60320001,3539.7,3539.6,3.03422619]
[1754286987721,4.73460001,3539.7,3539.6,3.03422619]
[1754286987914,6.60320001,3539.7,3539.6,3.03422619]
[1754286988316,4.30000001,3539.7,3539.6,3.03422619]
[1754286988508,4.73460001,3539.7,3539.6,3.03422619]
[1754286988710,0.43460001,3539.7,3539.6,3.03422619]
[1754286988922,4.73360001,3539.7,3539.6,3.03422619]
[1754286989720,4.29900001,3539.7,3539.6,3.03422619]
[1754286990091,4.73010001,3539.7,3539.6,3.03422619]
[1754286990530,4.29900001,3539.7,3539.6,3.03422619]
[1754286990927,4.29900001,3539.7,3539.6,3.77593599]
[1754286992434,0.001,3540.1,3540.0,2.82485875]
[1754286992725,4.3,3540.1,3540.0,2.82485875]
[1754286992892,4.3,3540.1,3540.0,2.96645875]
[1754286993498,4.7311,3540.1,3540.0,2.96645875]
[1754286993818,4.7311,3540.1,3540.0,3.54559964]
[1754286995629,0.001,3540.1,3540.0,3.54559964]
[1754286995929,4.3,3540.1,3540.0,3.54559964]
[1754286998116,0.001,3540.1,3540.0,3.54559964]
[1754286999643,0.1416,3540.8,3540.1,2.82477896]
[1754286999863,0.4311,3540.8,3540.7,2.82430027]
[1754287000010,4.298,3540.8,3540.7,2.82430027]
[1754287000369,4.7291,3540.8,3540.7,2.96590027]
[1754287001205,6.79,3541.3,3540.7,0.1416]
[1754287001410,6.79,3541.3,3541.2,2.9647015]
[1754287001647,6.79,3541.3,3541.2,2.8239015]
[1754287001648,13.0517,3541.3,3541.2,2.8239015]
[1754287001850,6.79,3541.3,3541.2,2.8239015]
[1754287002009,11.5191,3541.3,3541.2,2.8239015]
[1754287002441,11.5191,3541.3,3541.2,9.8239015]
[1754287002932,11.5191,3541.3,3541.2,2.8239015]
[1754287003308,4.7291,3541.3,3541.2,2.8239015]
[1754287005023,6.6928,3541.3,3541.2,2.8239015]
[1754287008829,4.7291,3541.3,3541.2,2.8239015]
[1754287009036,0.4311,3541.3,3541.2,2.8239015]
[1754287009217,4.7281,3541.3,3541.2,2.8239015]
[1754287010151,4.297,3541.3,3541.2,2.8239015]
[1754287010358,0.6908,3541.7,3541.6,2.82358256]
[1754287010518,4.9878,3541.7,3541.6,2.82358256]
[1754287010719,7.2418,3541.7,3541.6,2.82358256]
[1754287011155,7.2418,3541.7,3541.4,2.96447534]
[1754287011156,7.2418,3541.7,3541.5,2.82365093]
[1754287011468,2.9448,3541.6,3541.0,2.82398559]
[1754287011677,0.55,3541.4,3541.1,2.82396042]
[1754287011873,0.55,3541.2,3541.0,2.82398927]
[1754287012074,4.847,3541.1,3541.0,2.82406099]
[1754287012372,7.2418,3541.1,3541.0,2.82406099]
[1754287013168,7.2418,3541.1,3540.4,2.82447927]
[1754287013169,0.55,3541.0,3539.4,2.82533762]
[1754287013380,0.55,3540.8,3540.4,2.82452049]
[1754287013688,0.55,3540.6,3539.8,3.0]
[1754287013971,0.55,3540.4,3540.0,2.82480524]
[1754287014130,0.55,3540.2,3539.9,2.82491032]
[1754287014331,6.6948,3540.1,3539.4,3.21307408]
[1754287014530,0.4311,3540.0,3539.9,2.82493855]
[1754287015326,0.4311,3540.0,3539.7,2.82503733]
[1754287015327,0.4311,3540.7,3539.8,0.01377961]
[1754287015456,0.9811,3540.7,3540.6,2.82438004]
[1754287015636,5.2811,3540.7,3540.6,2.82438004]
[1754287016066,0.55,3540.6,3540.5,2.82445751]
[1754287016566,2.9448,3540.6,3539.4,3.21307408]
[1754287016775,0.55,3540.4,3539.4,0.21307408]
[1754287016968,4.85,3540.3,3540.2,2.82469916]
[1754287017133,5.2811,3540.3,3540.2,2.82469916]
[1754287017340,7.2448,3540.3,3540.2,2.82469916]
[1754287017739,7.2468,3540.3,3540.2,2.82469916]
[1754287019697,7.2468,3540.3,3540.1,2.8247516]
[1754287020004,7.2468,3540.3,3539.5,2.82523547]
[1754287020005,4.852,3540.3,3540.2,2.82469916]
[1754287020496,4.852,3540.3,3539.5,2.82523547]
[1754287020497,0.55,3540.2,3539.5,2.82523547]
[1754287020706,4.301,3540.1,3539.5,0.30383096]
[1754287020906,4.851,3540.1,3540.0,2.82485875]
[1754287021589,7.3196,3540.1,3540.0,2.82485875]
[1754287027800,4.851,3540.1,3540.0,2.82485875]
[1754287028665,6.8496,3540.1,3540.0,2.82485875]
[1754287029280,7.3196,3540.1,3540.0,2.82485875]
[1754287044190,7.3196,3540.1,3540.0,2.82685875]
[1754287044423,7.3206,3540.1,3540.0,2.82685875]
[1754287048919,3.0196,3540.1,3540.0,2.82685875]
[1754287049225,7.3176,3540.1,3540.0,2.82685875]
[1754287051120,7.3176,3540.1,3540.0,0.002]
[1754287051292,7.3176,3540.1,3540.0,2.82685875]
[1754287052425,7.3176,3540.1,3540.0,0.002]
[1754287052609,7.3176,3540.1,3540.0,2.82685875]
[1754287060746,7.3176,3540.1,3540.0,0.002]
[1754287061063,7.60452669,3540.1,3540.0,0.002]
[1754287061348,10.42930565,3540.1,3540.0,0.002]
[1754287064011,13.42930565,3540.1,3540.0,0.002]
[1754287086569,20.47930565,3540.1,3540.0,0.002]
[1754287099599,18.01070565,3540.1,3540.0,0.002]
[1754287100090,13.71270565,3540.1,3540.0,0.002]
[1754287100257,18.00870565,3540.1,3540.0,0.002]
[1754287101505,19.97190565,3540.1,3540.0,0.002]
[1754287101711,20.41900565,3540.1,3540.0,0.002]
[1754287107400,20.63024965,3540.1,3540.0,0.002]
[1754287112194,20.41900565,3540.1,3540.0,0.002]
[1754287132738,32.41079868,3540.1,3540.0,0.002]
[1754287133795,0.55,3539.0,3538.5,0.1416]
[1754287134001,0.55,3538.8,3538.5,0.1416]
[1754287134230,4.294,3538.7,3538.5,0.1416]
[1754287134550,0.55,3538.6,3538.5,0.1416]
[1754287134717,0.55,3538.6,3538.3,2.96780269]
[1754287134930,4.294,3538.5,3538.3,2.96780269]
[1754287135105,4.294,3538.5,3538.3,3.17579653]
[1754287135489,4.294,3538.5,3537.9,0.36759203]
[1754287135490,0.5853267,3538.4,3537.9,2.82647537]
[1754287135629,0.55,3538.2,3537.8,0.1416]
[1754287135812,4.294,3538.1,3537.8,0.1416]
[1754287136443,4.294,3538.1,3537.8,2.96820662]
[1754287136740,4.294,3538.1,3537.8,0.1416]
[1754287137160,0.55,3538.0,3536.9,2.82731731]
[1754287137324,4.294,3537.9,3537.7,0.1416]
[1754287137706,4.294,3537.9,3537.4,2.82689495]
[1754287137707,0.55,3537.8,3537.4,2.82689495]
[1754287138056,4.294,3537.7,3537.5,0.1416]
[1754287138552,4.294,3537.7,3537.6,2.82677521]
[1754287138847,4.294,3537.7,3537.5,2.9684278]
[1754287139060,4.294,3537.7,3537.6,2.82677521]
[1754287139741,4.294,3537.7,3537.5,2.96845178]
[1754287139947,4.294,3537.6,3537.5,2.96844279]
[1754287140152,0.55,3537.9,3537.7,2.82664761]
[1754287140334,4.844,3537.8,3537.7,2.82664761]
[1754287143466,4.294,3537.8,3537.7,0.72110904]
[1754287143667,4.294,3537.8,3537.7,3.54780435]
[1754287144350,6.79,3538.7,3537.7,0.1416]
[1754287144548,6.79,3538.7,3537.2,14.39966191]
[1754287144549,6.79,3538.7,3538.6,2.82597637]
[1754287144870,14.084,3538.7,3538.6,2.82597637]
[1754287145174,14.084,3538.7,3538.6,3.03819005]
[1754287145669,9.79,3538.7,3538.6,3.03819005]
[1754287145860,14.084,3538.7,3538.6,3.03819005]
[1754287146643,6.79,3538.7,3538.6,3.03819005]
[1754287146846,11.084,3538.7,3538.6,3.03819005]
[1754287147093,11.084,3538.7,3538.6,3.17979005]
[1754287147460,6.79,3538.7,3538.6,3.17979005]
[1754287147648,11.084,3538.7,3538.6,3.17979005]
[1754287148469,6.79,3538.7,3538.6,3.17979005]
[1754287148655,11.084,3538.7,3538.6,3.17979005]
[1754287149483,6.79,3538.7,3538.6,3.17979005]
[1754287149644,11.084,3538.7,3538.6,3.17979005]
[1754287150720,11.084,3538.7,3538.6,3.18179005]
[1754287153228,11.083,3538.7,3538.6,3.18179005]
[1754287155340,4.293,3538.7,3538.6,3.18179005]
[1754287157941,4.7586,3538.7,3538.6,3.18179005]
[1754287159646,4.7586,3538.7,3538.6,3.04019005]
[1754287160234,4.7586,3538.7,3538.6,2.82797637]
[1754287172357,4.7596,3538.7,3538.6,2.82797637]
[1754287177440,4.7576,3538.7,3538.6,2.82797637]
[1754287178334,0.4666,3538.7,3538.6,2.82797637]
[1754287178644,4.7576,3538.7,3538.6,2.82797637]
[1754287179463,0.4666,3538.7,3538.6,2.82797637]
[1754287179668,4.7576,3538.7,3538.6,2.82797637]
[1754287180073,0.4666,3538.7,3538.6,2.82797637]
[1754287180379,4.7576,3538.7,3538.6,2.82797637]
[1754287184350,0.4666,3538.7,3538.6,2.82797637]
[1754287184552,4.7566,3538.7,3538.6,2.82797637]
[1754287187786,4.7566,3538.7,3538.6,2.70557037]
[1754287187998,4.7566,3538.7,3538.6,0.002]
[1754287188285,17.90112191,3538.7,3538.6,2.82797637]
[1754287188491,22.19112191,3538.7,3538.6,2.82797637]
[1754287191298,22.19112191,3538.7,3538.6,0.002]
[1754287191794,22.19112191,3538.7,3538.6,2.82797637]
[1754287192171,21.71546191,3538.7,3538.6,2.82797637]
[1754287193391,21.71546191,3538.7,3538.6,0.002]
[1754287193392,28.76546191,3538.7,3538.6,0.002]
[1754287197998,31.59135842,3538.7,3538.6,0.002]
[1754287198698,34.59135842,3538.7,3538.6,0.002]
[1754287198904,37.45960549,3538.7,3538.6,0.002]
[1754287199108,14.39966191,3538.3,3538.2,0.002]
[1754287199394,18.83026191,3538.3,3538.2,0.002]
[1754287199599,27.02497788,3538.3,3538.2,0.002]
[1754287199794,29.89322495,3538.3,3538.2,0.002]
[1754287200001,27.06700898,3538.3,3538.2,0.002]
[1754287201105,30.44322495,3538.3,3538.2,0.002]
[1754287201397,3.55,3537.7,3537.1,2.8271097]
[1754287201611,3.55,3537.7,3535.2,4.289]
[1754287201612,0.55,3537.5,3535.8,2.82821426]
[1754287201772,0.6916,3537.2,3536.9,2.82731865]
[1754287201970,0.55,3537.0,3536.9,2.82731865]
[1754287202989,4.289,3537.0,3536.8,0.01383951]
[1754287203179,4.289,3537.0,3536.9,2.96893467]
[1754287203377,0.4445,3537.5,3536.9,0.1416]
[1754287203581,6.79,3537.7,3537.6,2.82677521]
[1754287203772,11.079,3537.7,3537.6,2.96837521]
[1754287204587,6.79,3537.7,3537.6,2.96837521]
[1754287204786,11.08,3537.7,3537.6,2.96837521]
[1754287206006,11.08,3537.7,3537.6,3.17559258]
[1754287206220,6.79,3537.7,3537.6,3.17559258]
[1754287206412,11.079,3537.7,3537.6,3.17559258]
[1754287209428,6.79,3537.7,3537.6,3.17559258]
[1754287209724,11.079,3537.7,3537.6,3.17559258]
[1754287210329,11.5235,3537.7,3537.6,3.17559258]
[1754287210501,4.7335,3537.7,3537.6,3.17559258]
[1754287212993,4.289,3537.7,3537.6,3.17559258]
[1754287214034,0.4445,3537.9,3537.8,2.82661541]
[1754287214238,4.289,3537.9,3537.8,2.82661541]
[1754287214750,4.7335,3537.9,3537.8,2.82661541]
[1754287217048,0.55,3537.8,3537.6,2.82674739]
[1754287217212,4.839,3537.7,3537.6,2.82674739]
[1754287217414,5.2835,3537.7,3537.6,2.82674739]
[1754287218160,0.9945,3537.7,3537.6,2.82674739]
[1754287218318,5.2835,3537.7,3537.6,2.82674739]
[1754287218518,4.289,3537.7,3537.6,2.82674739]
[1754287218712,4.289,3537.7,3537.6,2.96834739]
[1754287221346,4.289,3537.7,3537.6,3.18296237]
[1754287221744,4.7335,3537.7,3537.6,3.04136237]
[1754287221911,7.2075,3537.7,3537.6,2.82674739]
[1754287222935,7.2075,3537.7,3536.3,2.82774927]
[1754287222936,0.55,3537.6,3536.8,2.8273747]
[1754287223132,4.7335,3537.5,3537.4,2.82693151]
[1754287223324,6.6575,3537.5,3537.4,2.82693151]
[1754287224045,0.55,3537.4,3537.3,2.82701186]
[1754287224355,0.9945,3537.4,3537.3,2.82701186]
[1754287225847,0.9945,3537.4,3537.3,2.82701495]
[1754287226028,2.9185,3537.4,3537.3,2.82701495]
[1754287227049,0.9945,3537.4,3537.3,2.82701495]
[1754287228533,8.0445,3537.4,3537.3,2.82701495]
[1754287229467,7.05,3537.4,3537.3,2.82701495]
[1754287229764,11.339,3537.4,3537.3,2.96861495]
[1754287231368,7.05,3537.4,3537.3,2.96861495]
[1754287231541,11.339,3537.4,3537.3,2.96861495]
[1754287233269,11.339,3537.4,3537.3,9.96861495]
[1754287234347,4.289,3537.4,3537.3,9.96861495]
[1754287235470,8.0748,3538.1,3538.0,2.82645562]
[1754287235648,12.3628,3538.1,3538.0,2.82645562]
[1754287236347,14.3292,3538.1,3538.0,2.82645562]
[1754287237577,14.3292,3538.1,3538.0,9.82645562]
[1754287239572,14.3292,3538.1,3538.0,2.82645562]
[1754287240253,12.3628,3538.1,3538.0,2.82645562]
[1754287243490,8.0748,3538.1,3538.0,2.82645562]
[1754287243696,12.3628,3538.1,3538.0,2.82645562]
[1754287244916,11.8128,3538.1,3538.0,2.82645562]
[1754287245272,7.5248,3538.1,3538.0,2.82645562]
[1754287245503,11.8128,3538.1,3538.0,2.82645562]
[1754287248905,11.337,3538.1,3538.0,2.82645562]
[1754287250009,7.05,3538.1,3538.0,2.82645562]
[1754287250212,11.337,3538.1,3538.0,2.82645562]
[1754287250376,11.337,3538.1,3538.0,2.96805562]
[1754287252921,7.05,3538.1,3538.0,2.96805562]
[1754287253099,11.337,3538.1,3538.0,9.96805562]
[1754287253683,4.287,3538.1,3538.0,9.96805562]
[1754287254516,0.001,3538.2,3538.1,2.82637573]
[1754287254695,4.288,3538.2,3538.1,2.82637573]
[1754287257018,4.288,3538.2,3538.1,9.82637573]
[1754287260486,6.792,3538.6,3538.5,2.82605623]
[1754287260689,8.6637,3538.6,3538.5,2.82605623]
[1754287260891,6.1587,3538.6,3538.5,2.96765623]
[1754287261136,1.8727,3538.6,3538.5,2.96765623]
[1754287261319,4.287,3538.6,3538.5,2.96765623]
[1754287261622,6.1587,3538.6,3538.5,2.96765623]
[1754287261924,0.001,3538.7,3538.6,2.82597637]
[1754287262092,4.287,3538.7,3538.6,2.82597637]
[1754287264036,6.6234,3538.7,3538.6,2.82597637]
[1754287267055,6.6234,3538.7,3538.6,9.82597637]
[1754287273872,4.286,3538.7,3538.6,9.82597637]
[1754287274025,0.001,3538.7,3538.6,9.82597637]
[1754287274228,4.286,3538.7,3538.6,9.82597637]
[1754287274930,4.286,3538.7,3538.6,2.82597637]
[1754287275135,6.1577,3538.7,3538.6,2.82597637]
[1754287275960,6.6224,3538.7,3538.6,2.82597637]
[1754287276338,0.001,3538.7,3538.6,2.82597637]
[1754287276733,4.285,3538.7,3538.6,2.82597637]
[1754287277560,4.285,3538.7,3538.6,9.82597637]
[1754287284174,1.8727,3539.1,3539.0,2.82565696]
[1754287284487,2.3374,3539.1,3539.0,2.96725696]
[1754287284658,6.6214,3539.1,3539.0,2.96725696]
[1754287284853,2.3374,3539.1,3539.0,2.96725696]
[1754287285059,1.8717,3539.4,3539.3,2.82541745]
[1754287285292,6.1557,3539.4,3539.3,2.82541745]
[1754287285488,6.6204,3539.4,3539.3,2.96701745]
[1754287285696,0.1416,3540.2,3539.8,2.82501836]
[1754287285697,2.53774312,3539.9,3539.8,2.82501836]
[1754287285993,4.87414312,3539.9,3539.8,2.82501836]
[1754287286202,9.15814312,3539.9,3539.8,2.96661836]
[1754287287070,2.53774312,3539.9,3539.8,3.18093438]
[1754287287268,2.14122075,3539.9,3539.8,3.18093438]
[1754287287469,4.284,3540.1,3540.0,2.82485875]
[1754287287671,4.284,3540.1,3540.0,2.96645875]
[1754287288197,0.001,3540.5,3540.0,2.96645875]
[1754287288198,4.7487,3540.5,3540.4,2.8245396]
[1754287288362,4.7487,3540.5,3540.4,2.9661396]
[1754287288799,6.6204,3540.5,3540.4,2.9661396]
[1754287291397,2.3374,3540.5,3540.4,2.9661396]
[1754287291603,6.6204,3540.5,3540.4,2.9661396]
[1754287292862,0.001,3540.5,3540.4,2.9661396]
[1754287293092,1.8784,3540.5,3540.4,2.9661396]
[1754287293605,0.001,3540.5,3540.4,2.9661396]
[1754287293996,1.8784,3540.5,3540.4,2.9661396]
[1754287294176,0.4341,3541.3,3541.2,2.8239015]
[1754287294376,4.7161,3541.3,3541.2,2.8239015]
[1754287294701,4.7161,3541.3,3541.2,2.9647015]
[1754287296107,4.7161,3541.3,3541.2,9.9647015]
[1754287296269,6.5935,3541.3,3541.2,9.9647015]
[1754287296470,6.5935,3541.3,3541.2,2.9647015]
[1754287297369,6.5935,3541.3,3541.2,2.8239015]
[1754287297904,7.25285,3541.3,3540.4,2.82453085]
[1754287298065,4.94235,3541.3,3540.9,2.96568374]
[1754287298260,2.3105,3541.2,3540.9,2.96568374]
[1754287298472,4.282,3541.1,3540.9,2.96568374]
[1754287298710,2.3105,3541.0,3540.9,0.1416]
[1754287299197,2.3105,3541.0,3540.9,2.82408309]
[1754287299602,6.5925,3541.0,3540.9,2.82408309]
[1754287300174,0.001,3541.3,3541.2,2.8239015]
[1754287300374,4.282,3541.3,3541.1,2.82395724]
[1754287300573,4.282,3541.3,3541.2,0.1408]
[1754287301112,4.282,3541.3,3541.2,2.9647015]
[1754287301312,0.55,3541.2,3540.8,2.82417743]
[1754287301618,0.55,3541.0,3540.9,2.82414075]
[1754287302116,4.281,3541.1,3541.0,2.82406099]
[1754287302616,6.5915,3541.1,3541.0,2.82406099]
[1754287305016,6.5915,3541.1,3540.9,0.1416]
[1754287305198,0.55,3541.0,3540.8,2.82421202]
[1754287305375,4.831,3540.9,3540.8,2.82421202]
[1754287305919,4.831,3540.9,3540.5,0.1416]
[1754287305920,0.55,3540.8,3540.5,2.82442305]
[1754287306076,4.831,3540.7,3540.6,2.82433041]
[1754287306280,4.831,3540.7,3540.3,0.1416]
[1754287306508,4.831,3540.7,3540.5,2.82439042]
[1754287306818,4.831,3540.7,3540.6,2.82438004]
[1754287307994,2.3105,3541.1,3540.4,2.82447202]
[1754287308198,2.8605,3541.1,3541.0,2.82406099]
[1754287308390,7.1415,3541.1,3541.0,2.82406099]
[1754287309282,6.7084,3541.1,3541.0,2.82406099]
[1754287311697,6.7084,3541.1,3540.9,2.82411127]
[1754287312208,6.7084,3541.1,3541.0,2.82406099]
[1754287313424,7.1415,3541.1,3541.0,2.82406099]
[1754287314621,2.8605,3541.1,3541.0,2.82406099]
[1754287314805,7.1415,3541.1,3541.0,2.82406099]
[1754287315809,7.1415,3541.1,3540.9,2.82413743]
[1754287316010,4.831,3541.1,3541.0,2.82406099]
[1754287316722,7.1415,3541.1,3541.0,2.82406099]
[1754287321342,0.55,3541.1,3541.0,2.82406099]
[1754287321542,4.281,3541.1,3541.0,2.82406099]
[1754287321969,0.55,3541.0,3539.9,1.8463]
[1754287322272,0.55,3540.8,3540.7,2.82422807]
[1754287322471,2.9481,3540.8,3540.4,2.96612422]
[1754287322676,0.55,3540.6,3540.5,2.82445479]
[1754287322879,0.55,3540.6,3540.4,2.82451897]
[1754287323045,4.7399,3540.5,3540.2,2.96629255]
[1754287323236,4.7399,3540.5,3540.4,2.8245396]
[1754287323432,4.7399,3540.5,3540.2,0.1416]
[1754287323633,0.4589,3540.4,3540.2,0.1416]
[1754287323860,4.281,3540.3,3540.2,0.1416]
[1754287324463,4.7399,3540.3,3540.2,2.96629916]
[1754287325376,4.7399,3540.3,3540.2,2.82469916]
[1754287326581,4.7399,3540.3,3540.1,0.21864225]
[1754287326782,4.281,3540.3,3540.2,2.82469916]
[1754287327392,4.7399,3540.3,3540.2,2.82469916]
[1754287332058,4.7399,3540.3,3540.1,0.002]
[1754287332268,0.94705,3540.2,3540.1,0.002]
[1754287332501,15.40856191,3540.2,3540.1,0.002]
[1754287333588,6.24320859,3540.2,3540.1,0.002]
[1754287339412,6.24320859,3540.2,3540.1,2.82677896]
[1754287340000,5.78430859,3540.2,3540.1,2.82677896]
[1754287340216,9.51530859,3540.2,3540.1,2.82677896]
[1754287340506,10.52420859,3540.2,3540.1,0.002]
[1754287340670,11.66322945,3540.2,3540.1,0.002]
[1754287344273,11.66322945,3540.2,3540.1,2.82677896]
[1754287345413,9.51530859,3540.2,3540.1,2.82677896]
[1754287346003,9.97420859,3540.2,3540.1,2.82677896]
[1754287347216,9.97420859,3540.2,3540.1,0.002]
[1754287347217,10.52420859,3540.2,3540.1,0.002]
[1754287347512,10.52420859,3540.2,3540.1,2.82677896]
[1754287347815,10.52420859,3540.2,3540.1,0.002]
[1754287348002,10.52420859,3540.2,3540.1,2.82677896]
[1754287348981,10.52420859,3540.2,3540.1,0.002]
[1754287349822,11.59078945,3540.2,3540.1,0.002]
[1754287353198,14.41548861,3540.2,3540.1,0.002]
[1754287354721,17.41548861,3540.2,3540.1,0.002]
[1754287356588,14.59078945,3540.2,3540.1,0.002]
[1754287358018,17.41548861,3540.2,3540.1,0.002]
[1754287362530,14.59078945,3540.2,3540.1,0.002]
[1754287362711,17.41548861,3540.2,3540.1,0.002]
[1754287362917,14.59078945,3540.2,3540.1,0.002]
[1754287363640,17.41548861,3540.2,3540.1,0.002]
[1754287363950,14.59078945,3540.2,3540.1,0.002]
[1754287364550,13.13448861,3540.2,3540.1,0.002]
[1754287364763,17.41548861,3540.2,3540.1,0.002]
[1754287365134,14.59078945,3540.2,3540.1,0.002]
[1754287365343,13.13448861,3540.2,3540.1,0.002]
[1754287366358,10.30978945,3540.2,3540.1,0.002]
[1754287367155,13.13448861,3540.2,3540.1,0.002]
[1754287368253,10.30978945,3540.2,3540.1,0.002]
[1754287368839,10.31078945,3540.2,3540.1,0.002]
[1754287372862,10.30408945,3540.2,3540.1,0.002]
[1754287379295,10.30408945,3540.2,3538.9,2.82571122]
[1754287379296,0.55,3539.3,3537.0,0.24632728]
[1754287379460,0.65,3539.1,3538.7,0.1416]
[1754287379663,0.1,3538.5,3538.3,2.82619255]
[1754287379892,4.281,3538.4,3538.3,2.82619255]
[1754287380408,4.281,3538.4,3538.3,2.82621597]
[1754287380690,4.281,3538.4,3538.1,3.04177082]
[1754287380691,0.1,3538.3,3538.1,3.04177082]
[1754287380892,4.831,3538.2,3536.9,2.82733467]
[1754287381193,0.1,3538.0,3537.9,2.82653551]
[1754287381361,4.381,3538.0,3537.9,2.82653551]
[1754287382821,4.381,3538.0,3537.8,0.1416]
[1754287382969,0.1,3537.7,3537.6,2.96837521]
[1754287383304,4.381,3537.7,3537.6,2.82677521]
[1754287383465,5.60349521,3537.7,3537.6,2.82677521]
[1754287389189,6.06539521,3537.7,3537.6,2.82677521]
[1754287389918,5.60349521,3537.7,3537.6,2.82677521]
[1754287392281,1.32249521,3537.7,3537.6,2.82677521]
[1754287392479,1.32249521,3537.7,3537.6,2.96837521]
[1754287392480,5.60449521,3537.7,3537.6,2.96837521]
[1754287392707,5.50449521,3537.7,3537.6,2.96837521]
[1754287393006,1.22249521,3537.7,3537.6,2.96837521]
[1754287393511,5.50449521,3537.7,3537.6,2.96837521]
[1754287393673,1.22249521,3537.7,3537.6,2.96837521]
[1754287394008,5.50449521,3537.7,3537.6,2.96837521]
[1754287395709,6.06639521,3537.7,3537.6,2.82677521]
[1754287400789,6.06639521,3537.7,3537.5,2.82684162]
[1754287400989,0.4619,3537.6,3537.5,2.82684162]
[1754287402230,0.65,3537.5,3537.4,0.1416]
[1754287402405,0.1,3537.1,3537.0,2.82725473]
[1754287402713,4.8439,3537.1,3537.0,2.82725473]
[1754287402898,4.8439,3537.1,3536.9,2.96890478]
[1754287403083,0.4619,3537.0,3536.9,2.96890478]
[1754287403279,5.838,3537.0,3536.9,0.1416]
[1754287403477,0.1,3536.6,3536.2,0.21032837]
[1754287403675,0.1,3536.6,3536.5,2.82765446]
[1754287403917,4.389,3536.6,3536.5,2.82765446]
[1754287405193,0.1,3536.6,3536.5,2.82765446]
[1754287405393,0.6916,3536.9,3536.4,2.96933441]
[1754287405394,1.2535,3536.9,3536.8,2.82741461]
[1754287405595,3.55,3536.8,3536.7,2.8274925]
[1754287405882,1.0119,3536.8,3536.7,2.8274925]
[1754287406186,1.1535,3536.8,3536.7,2.8274925]
[1754287406684,4.1535,3536.8,3536.7,2.8274925]
[1754287407587,5.4415,3536.8,3536.7,2.8274925]
[1754287407787,8.4415,3536.8,3536.7,2.8274925]
[1754287408419,7.288,3536.8,3536.7,2.8274925]
[1754287408721,2.07218221,3537.7,3537.4,2.82693503]
[1754287408722,0.1,3537.6,3537.4,2.82693503]
[1754287408935,11.179,3537.5,3537.4,2.82693503]
[1754287409421,11.079,3537.5,3537.4,2.82693503]
[1754287409813,6.791,3537.5,3537.4,2.82693503]
[1754287410014,11.081,3537.5,3537.4,2.82693503]
[1754287410213,11.5323,3537.5,3537.4,2.82693503]
[1754287411020,12.0823,3537.5,3537.4,2.82693503]
[1754287411215,12.2239,3537.5,3537.4,2.82693503]
[1754287411533,0.65,3537.0,3536.9,2.82733467]
[1754287411734,4.94,3537.0,3536.9,2.82733467]
[1754287411940,5.3913,3537.0,3536.9,2.82733467]
[1754287412524,7.2303,3537.0,3536.9,2.82733467]
[1754287413141,0.55,3536.9,3536.8,2.82740784]
[1754287413659,1.1429,3536.9,3536.8,2.82740784]